[Event "51st Rilton Cup 2023-24"]
[Site "Stockholm"]
[Date "2024.01.03"]
[Round "7.8"]
[White "Kulaots, Kaido"]
[Black "Olsson, William"]
[Result "1-0"]
[ECO "B31"]
[WhiteElo "2524"]
[BlackElo "2379"]
[Annotator "TA"]
[PlyCount "105"]
[EventDate "2023.12.27"]
[EventType "swiss"]
[EventCountry "SWE"]
[SourceTitle "playchess.com"]
[Source "ChessBase"]
[SourceQuality "1"]
[TimeControl "40/5400+30:1800+30"]

{[%evp 12,105,21,23,34,17,54,33,41,40,33,41,41,45,53,39,59,43,88,95,89,93,94,85,99,72,74,85,92,100,108,79,71,71,82,94,80,83,50,53,151,148,165,153,161,145,156,102,105,100,300,285,628,397,358,383,667,636,826,795,725,0,565,334,322,299,671,402,873,0,620,662,734,730,966,977,1119,1043,1154,1157,1184,972,1450,1450,12839,12839,12840,12840,12838,9952,12832,12832,12844,12844,12844,12844]} 1. e4 {[%emt 0:00:22]} c5 {[%emt 0:00:09]} 2. Nc3 {[%emt 0:00:58]} Nc6 {[%emt 0:00:34]} 3. Bb5 {[%emt 0:00:27]} Nd4 {[%emt 0:01:43]} 4. Nf3 {[%emt 0:00:20]} g6 {[%emt 0:00:32]} 5. Nxd4 {[%emt 0:02:38]} cxd4 {[%emt 0:00:05]} 6. Ne2 {[%emt 0:00:08]} Bg7 {[%emt 0:02:12]} 7. O-O {[%emt 0:00:26]} e6 {[%emt 0:05:09] B31: Sicilian: 2...Nc6 3 Bb5 g6.} 8. c3 {[%emt 0:08:17]} a6 {[%emt 0:01:56]} 9. Ba4 {[%emt 0:01:09]} b5 {[%emt 0:01:25] Strongly threatening ...dxc3. White is slightly better.} 10. Bc2 {[%emt 0:00:25]} dxc3 {[%emt 0:01:55]} 11. bxc3 {[%emt 0:03:14] [#]} d5 $146 {[%emt 0:01:32]} ({Predecessor:} 11... Ne7 12. a4 Rb8 13. axb5 axb5 14. Ba3 d6 15. d4 O-O 16. Rb1 Qc7 17. Bd3 Ba6 {1-0 Shevchenko,K (2451)-Ibrahimli,M (2155) Wch FIDE Online U18 Europe qual rapid 2020 (3)}) 12. d4 {[%emt 0:07:57]} Ne7 {[%emt 0:03:26]} 13. e5 {[%emt 0:00:56]} O-O {[%emt 0:05:11]} 14. h4 {[%emt 0:05:24][%cal Bh2h4,Bh4h5][%mdl 32]} f6 {[%emt 0:06:28]} 15. exf6 {[%emt 0:03:50]} Bxf6 {[%emt 0:00:11] [#]} 16. h5 $1 {[%emt 0:00:09]} e5 {[%emt 0:05:12]} 17. dxe5 {[%emt 0:01:45]} Bxe5 {[%emt 0:00:56]} 18. Nd4 {[%emt 0:01:16]} Qd6 {[%emt 0:06:56]} 19. a4 {[%emt 0:08:14]} b4 {[%emt 0:07:50] [#]} 20. cxb4 $1 {[%emt 0:06:43]} Qf6 {[%emt 0:06:23]} 21. Be3 {[%emt 0:05:41]} Qh4 {[%emt 0:01:50][%csl Ge5][%cal Rh4h2] [#]} 22. f4 $1 {[%emt 0:01:46]} Bxf4 {[%emt 0:00:03]} (22... Rxf4 23. Bxf4) 23. Bxf4 {[%emt 0:10:04]} Rxf4 {[%emt 0:00:06]} 24. Rxf4 {[%emt 0:00:02]} Qxf4 {[%emt 0:00:10]} 25. Qd3 {[%emt 0:00:09] Dodges Qe3+. Black must now prevent Re1.} Qd6 {[%emt 0:09:20]} ({Better is} 25... Bf5 $14 26. Nxf5 Qxf5) 26. Qd2 {[%emt 0:12:34]} Bd7 {[%emt 0:02:38]} 27. h6 {[%emt 0:03:40]} Rf8 {[%emt 0:04:03]} 28. Re1 {[%emt 0:02:44]} Rf7 {[%emt 0:01:19] [#]} 29. Bb3 {[%emt 0:02:57]} ({White should play} 29. a5 $1) 29... Kf8 $16 {[%emt 0:00:42]} 30. Nf3 {[%emt 0:07:39][%cal Bd4f3,Bf3g5,Bg5h7][%mdl 32] Hoping for Ng5. White is more active.} Qf4 {[%emt 0:10:23] Prevents Ng5} (30... Rf4 $16) 31. Qc3 $18 {[%emt 0:01:41]} (31. Bxd5 $2 Qxd2 32. Nxd2 Nxd5 $19) 31... Qf6 $2 {[%emt 0:01:43]} (31... Rf6 32. b5 (32. Qc5 Re6 $16) 32... axb5 33. axb5 (33. Qc5 Qd6 $16) 33... g5) 32. Qxf6 {[%emt 0:01:06]} Rxf6 {[%emt 0:00:07]} 33. Ng5 {[%emt 0:00:05]} Rf4 $2 {[%emt 0:01:43]} (33... Rf5) 34. Nxh7+ {[%emt 0:00:38]} Kf7 {[%emt 0:00:09]} 35. Ng5+ {[%emt 0:00:16]} Kf6 {[%emt 0:01:23]} 36. Nh7+ {[%emt 0:00:06]} Kf7 {[%emt 0:00:05]} 37. Rf1 {[%emt 0:02:33]} Rxf1+ {[%emt 0:02:38]} 38. Kxf1 {[%emt 0:00:02][%mdl 4096] Endgame KBN-KBN} Bc6 $2 {[%emt 0:01:48]} (38... Nf5 39. Ng5+ (39. Bxd5+ Ke7 $16) 39... Kf6) 39. Ng5+ {[%emt 0:00:48]} Kf6 {[%emt 0:00:22]} (39... Kg8 $142 40. Ke2 Nf5) 40. Nh7+ {[%emt 0:00:31]} Kf7 $1 {[%emt 0:00:26]} 41. g4 {[%emt 0:03:33][%cal Bg2g4,Bg4g5][%mdl 32] Wards off Nf5. White is clearly winning.} Nc8 {[%emt 0:02:58]} 42. g5 {[%emt 0:10:03]} Nb6 {[%emt 0:05:29]} 43. a5 {[%emt 0:00:17]} Nd7 {[%emt 0:10:03]} 44. Kf2 {[%emt 0:00:58]} Ke6 {[%emt 0:00:43]} 45. Bc2 {[%emt 0:02:51]} Kf7 {[%emt 0:00:55]} 46. Ke3 {[%emt 0:00:44]} Bb5 {[%emt 0:01:23]} 47. Bb3 {[%emt 0:00:40]} Bc4 {[%emt 0:00:13]} 48. Bxc4 {[%emt 0:01:07]} dxc4 {[%emt 0:00:08]} 49. Kd4 {[%emt 0:00:04]} Ne5 {[%emt 0:01:05]} 50. Kc3 {[%emt 0:00:26]} (50. Kxe5 $2 {is the wrong capture.} c3 51. b5 c2 $19) 50... Ke6 {[%emt 0:00:57]} 51. Nf6 {[%emt 0:00:41]} Kf5 {[%emt 0:00:55]} 52. h7 {[%emt 0:00:52]} Nf7 {[%emt 0:00:04]} 53. b5 {[%emt 0:00:14][%mdl 64] Promotion.   Weighted Error Value: White=0.58/Black=0.55} 1-0

[Event "51st Rilton Cup 2023-24"]
[Site "Stockholm"]
[Date "2024.01.03"]
[Round "7.9"]
[White "Krishna C R G"]
[Black "Gorshtein, Ido"]
[Result "0-1"]
[ECO "E14"]
[WhiteElo "2396"]
[BlackElo "2523"]
[Annotator "TA"]
[PlyCount "52"]
[EventDate "2023.12.27"]
[EventType "swiss"]
[EventCountry "SWE"]
[SourceTitle "playchess.com"]
[Source "ChessBase"]
[SourceQuality "1"]
[TimeControl "40/5400+30:1800+30"]

{[%evp 11,52,0,4,9,87,63,72,77,77,77,87,65,90,84,91,106,97,16,23,22,100,104,139,124,129,49,70,0,0,-153,-145,-136,-135,-135,-146,-265,-276,-272,-264,-270,-260,-831,-280]} 1. d4 {[%emt 0:07:20]} Nf6 {[%emt 0:00:13]} 2. Nf3 {[%emt 0:00:06]} e6 {[%emt 0:00:25]} 3. e3 {[%emt 0:00:03][%cal Be2e3,Be3d4,Bd4d5][%mdl 32]} c5 {[%emt 0:01:30]} 4. Bd3 {[%emt 0:00:03]} b6 {[%emt 0:00:23]} 5. O-O {[%emt 0:00:04]} Bb7 {[%emt 0:00:05]} 6. c4 {[%emt 0:00:08]} cxd4 {[%emt 0:02:21]} 7. exd4 {[%emt 0:00:03] E14: Queen's Indian: Classical Variation (4 e3).} d6 {[%emt 0:02:17]} (7... d5 $11) 8. Nc3 {[%emt 0:00:46][%cal Od4d5]} Nbd7 {[%emt 0:01:05] [#]} 9. d5 $1 {[%emt 0:07:13] White is better.} e5 {[%emt 0:00:08]} 10. Ng5 {[%emt 0:13:31]} Be7 {[%emt 0:02:10]} 11. f4 {[%emt 0:00:42]} a6 {[%emt 0:16:23][%cal Ob6b5] [#]} 12. Be3 $146 {[%emt 0:13:45][%mdl 2048] White is really pushing.} ({Predecessor:} 12. b3 Qc7 13. Bb2 exf4 14. Rxf4 Ne5 15. Nce4 Nxe4 16. Nxe4 Rf8 17. Bxe5 dxe5 18. Rf1 {0-1 Westerberg,J (2498)-Kunin,V (2582) Vaxjo Visma GM 2016 (1)}) 12... Rc8 {[%emt 0:05:52]} 13. Qe2 {[%emt 0:10:07]} O-O {[%emt 0:11:47][%cal Ob6b5]} 14. Nce4 {[%emt 0:22:58]} ({Better is} 14. fxe5 $16 dxe5 15. Nge4 Nxe4 16. Bxe4) 14... Nxe4 $11 {[%emt 0:11:31]} 15. Bxe4 {[%emt 0:05:15]} Nf6 {[%emt 0:07:35]} (15... h6 $11 {keeps the balance.} 16. Bh7+ Kh8) 16. Bf5 $16 {[%emt 0:00:31]} Rb8 {[%emt 0:01:53][%cal Ob6b5] Black is weak on the light squares} 17. Rad1 {[%emt 0:04:54]} exf4 {[%emt 0:04:59]} 18. Bxf4 {[%emt 0:03:25]} ({White should play} 18. Rxf4 $16 {Bc2 would be deadly.} h6 19. Nf3) 18... g6 {[%emt 0:02:39]} 19. Rde1 {[%emt 0:04:52]} (19. Be6 $14 fxe6 20. Qxe6+ Kg7 21. Rde1 Nxd5 22. cxd5 Bxg5 23. Bxd6) 19... Nxd5 $11 {[%emt 0:02:09][%mdl 64] Discovered Attack} 20. Nxf7 {[%emt 0:00:00]} (20. Nxh7 $1 $11 Nxf4 {[%mdl 64] Discovered Attack} 21. Rxf4 Kxh7 22. Qh5+ Kg7 23. Rg4) 20... Nxf4 $17 {[%emt 0:01:28][%mdl 64] Discovered Attack} (20... Rxf7 $2 21. Be6 (21. cxd5 $2 {loses.} gxf5 22. Qe6 Bc8 $19) 21... Nxf4 22. Bxf7+ Kg7 23. Qxe7 Qxe7 24. Rxe7 $18) 21. Rxf4 {[%emt 0:00:00] Intending Bxg6 and mate.} Kxf7 {[%emt 0:02:14]} (21... Rxf7 $2 22. Be6 Bf6 23. Bxf7+ Kg7 24. Be6 $18) 22. Bxg6+ {[%emt 0:04:35]} Kxg6 {[%emt 0:00:09]} 23. Qe6+ {[%emt 0:00:11]} (23. Qg4+ $17 {was worth a try.} Bg5 24. Rxf8 Qxf8 25. Re6+ Kf7 26. Qf5+ Kg8 27. Qxg5+ Qg7 28. Qxg7+ Kxg7 29. Rxd6) 23... Rf6 $19 {[%emt 0:05:24]} (23... Kg5 {leads to mate.} 24. h4+ Kh5 25. Qg4+ Kh6 26. Re6+ Rf6 27. Qg5#) 24. Rg4+ {[%emt 0:00:21]} Kh5 {[%emt 0:00:02]} 25. Qe2 {[%emt 0:00:01] [#] And now Rg8+ would win.} Rg6 {[%emt 0:00:14]} 26. h3 $2 {[%emt 0:01:25] [#]} (26. Rxg6+ Kxg6 27. Qxe7 Qxe7 28. Rxe7) 26... Kh6 $2 {[%emt 0:00:24] Weighted Error Value: White=0.67/Black=0.17 (very precise)} 0-1

[Event "51st Rilton Cup 2023-24"]
[Site "Stockholm"]
[Date "2024.01.03"]
[Round "7.10"]
[White "Aradhya, Garg"]
[Black "Hillarp Persson, Tiger"]
[Result "1-0"]
[ECO "A70"]
[WhiteElo "2390"]
[BlackElo "2493"]
[Annotator "TA"]
[PlyCount "63"]
[EventDate "2023.12.27"]
[EventType "swiss"]
[EventCountry "SWE"]
[SourceTitle "playchess.com"]
[Source "ChessBase"]
[SourceQuality "1"]
[TimeControl "40/5400+30:1800+30"]

{[%evp 18,63,48,42,53,20,18,10,28,13,14,26,18,16,24,16,18,12,12,9,47,0,37,38,47,14,12,12,13,12,22,0,0,-92,-92,-75,-8,-95,-3,-2,0,0,116,112,497,490,453,422]} 1. d4 {[%emt 0:00:30]} Nf6 {[%emt 0:00:55]} 2. c4 {[%emt 0:00:00]} e6 {[%emt 0:00:14]} 3. Nf3 {[%emt 0:05:07]} c5 {[%emt 0:00:15]} 4. d5 {[%emt 0:00:07]} d6 {[%emt 0:00:07]} 5. Nc3 {[%emt 0:00:05]} exd5 {[%emt 0:00:06]} 6. cxd5 {[%emt 0:00:04]} g6 {[%emt 0:00:07]} 7. h3 {[%emt 0:00:16]} Bg7 {[%emt 0:00:11]} 8. e4 {[%emt 0:00:09]} O-O {[%emt 0:00:06]} 9. Bd3 {[%emt 0:00:16]} Re8 {[%emt 0:00:22]} 10. O-O {[%emt 0:00:15]} Nbd7 {[%emt 0:00:08][%cal Oc5c4] A70: Modern Benoni: 6 e4 g6 7 Nf3.} 11. Bf4 {[%emt 0:02:04]} c4 $1 {[%emt 0:00:10]} 12. Bc2 {[%emt 0:15:57]} Nc5 $1 {[%emt 0:06:04][%cal Rc5e4] The position is equal.} 13. Re1 {[%emt 0:00:24]} b5 {[%emt 0:06:37][%mdl 64] [#] Deflection} 14. Nxb5 {[%emt 0:14:05][%cal Bc3b5,Bb5d4,Bd4c6][%mdl 32]} Nfxe4 {[%emt 0:01:01]} 15. Bxe4 {[%emt 0:13:09]} Nxe4 {[%emt 0:02:14]} 16. Qc2 {[%emt 0:00:45]} Bd7 {[%emt 0:41:45]} (16... Ba6 {seems wilder.} 17. Nfd4 Qd7 18. Qxc4 Rac8) 17. Nbd4 {[%emt 0:04:29] [#] A dynamic duo of knights.} (17. Nxd6 $2 Nxd6 18. Bxd6 Rxe1+ 19. Rxe1 Bf5 20. Qxc4 Qxd6 $19) 17... f5 $146 {[%emt 0:01:34]} ({Predecessor:} 17... Nf6 18. Qxc4 Qb6 19. Nb3 Rec8 20. Qd4 Qa6 21. Qd2 Bf5 22. Nbd4 Be4 23. Qb4 Bxd5 24. Qxd6 {0-1 Dill,J (1792)-Wang,T (2317) Charlotte Carolinas op 2021 (1)}) 18. Qxc4 {[%emt 0:07:18]} Qb6 {[%emt 0:07:27]} 19. Re2 {[%emt 0:09:23]} (19. Be3 $1 $14 {is more appropriate.} Qxb2 20. Rac1) 19... g5 {[%emt 0:05:07]} 20. Be3 {[%emt 0:01:50][%cal Od4f5] [#] Strongly threatening Nxf5!} Qc5 $1 {[%emt 0:00:09]} 21. Qxc5 {[%emt 0:08:18]} (21. Rc1 $5 {[%cal Rc4b3]}) 21... dxc5 {[%emt 0:00:43][%cal Bd6c5,Bc5c4][%mdl 32]} 22. Nc6 {[%emt 0:00:17]} g4 {[%emt 0:07:32]} 23. hxg4 {[%emt 0:00:51]} fxg4 {[%emt 0:00:10]} 24. Ne1 {[%emt 0:02:15]} (24. Nh4 $5 {[%cal Re3f4]}) 24... g3 {[%emt 0:01:08]} 25. Nd3 {[%emt 0:05:29]} (25. Rc2 $11) 25... c4 $17 {[%emt 0:03:32]} 26. Nf4 {[%emt 0:00:03]} Nxf2 {[%emt 0:02:03]} (26... c3 $17 27. bxc3 Nxc3) 27. Rc1 {[%emt 0:02:39]} (27. Nh5 $1 $11 {keeps the balance.}) 27... Ng4 {[%emt 0:13:34]} (27... Nd3 $17 28. Rxc4 Bg4 {[%mdl 64] Deflection}) 28. Bc5 $11 {[%emt 0:00:48]} ({Reject} 28. Bxa7 c3 29. Rxe8+ (29. bxc3 $2 Rxe2 30. Nxe2 Bxc6 $19) 29... Bxe8 30. bxc3 (30. Ne7+ $2 Kh8 $19) 30... Bxc6 31. dxc6 Rxa7 $17) 28... Bxc6 {[%emt 0:00:32]} 29. dxc6 {[%emt 0:00:04]} Bh6 {[%emt 0:00:16]} (29... Be5 $11 {remains equal.} 30. Re4 (30. Rxc4 Rad8 $15) 30... Bxb2) 30. Rxc4 $16 {[%emt 0:00:50] Threatens to win with c7. White is more active.} Bxf4 {[%emt 0:00:48][%mdl 8192]} (30... Ne5 $16 {is tougher.} 31. Rce4 Rad8) 31. Rxe8+ $18 {[%emt 0:00:13]} Rxe8 {[%emt 0:00:13][%cal Re8e1]} 32. Rxf4 {[%emt 0:00:01] Weighted Error Value: White=0.21 (precise) /Black=0.46} 1-0

[Event "51st Rilton Cup 2023-24"]
[Site "Stockholm"]
[Date "2024.01.03"]
[Round "7.11"]
[White "Rozentalis, Eduardas"]
[Black "D`Costa, Lorin"]
[Result "1-0"]
[ECO "B11"]
[WhiteElo "2454"]
[BlackElo "2375"]
[Annotator "RC"]
[PlyCount "57"]
[EventDate "2023.12.27"]
[EventType "swiss"]
[EventCountry "SWE"]
[SourceTitle "playchess.com"]
[Source "ChessBase"]
[SourceQuality "1"]
[TimeControl "40/5400+30:1800+30"]

1. e4 {[%emt 0:00:03]} c6 {[%emt 0:04:01]} 2. Nc3 {[%emt 0:01:09]} d5 {[%emt 0:00:10]} 3. Nf3 {[%emt 0:00:05]} Bg4 {[%emt 0:00:40]} 4. h3 {[%emt 0:00:07]} Bxf3 {[%emt 0:00:23]} 5. Qxf3 {[%emt 0:00:06]} e6 {[%emt 0:00:13]} 6. d4 {[%emt 0:01:24]} Nf6 {[%emt 0:01:32]} 7. Qd3 {[%emt 0:10:15]} dxe4 {[%emt 0:06:40]} 8. Nxe4 {[%emt 0:00:23]} Nbd7 {[%emt 0:00:57]} 9. Ng5 {[%emt 0:04:23]} g6 {[%emt 0:07:00]} 10. g3 {[%emt 0:02:39]} Bg7 {[%emt 0:01:40]} 11. Bg2 {[%emt 0:02:07]} O-O {[%emt 0:00:55]} 12. O-O {[%emt 0:00:36]} a5 {[%emt 0:03:35]} 13. Bd2 {[%emt 0:06:41]} Nd5 {[%emt 0:10:20]} 14. Rad1 {[%emt 0:06:07]} b5 {[%emt 0:06:12]} 15. Rfe1 {[%emt 0:02:01]} Qb6 {[%emt 0:02:09]} 16. c3 {[%emt 0:00:55]} Rad8 {[%emt 0:13:32]} 17. h4 {[%emt 0:05:08]} N7f6 {[%emt 0:08:13]} 18. Bf1 {[%emt 0:17:18]} Rb8 {[%emt 0:08:36]} 19. Nf3 {[%emt 0:07:09]} Rfd8 {[%emt 0:03:50]} 20. Ne5 {[%emt 0:04:33]} c5 {[%emt 0:06:57]} 21. dxc5 {[%emt 0:02:47]} Qxc5 {[%emt 0:00:07]} 22. Bg5 {[%emt 0:00:59]} Qc7 {[%emt 0:02:01]} 23. Qf3 {[%emt 0:02:14]} h6 {[%emt 0:03:32]} 24. Bc1 {[%emt 0:05:20]} Rd6 {[%emt 0:06:23]} 25. a3 {[%emt 0:05:03]} h5 {[%emt 0:00:53]} 26. Bh3 {[%emt 0:02:14]} Rbb6 {[%emt 0:01:21]} 27. Qe2 {[%emt 0:01:22]} Nd7 {[%emt 0:00:47]} 28. Nxf7 {[%emt 0:03:45]} Kxf7 {[%emt 0:00:15]} 29. Rxd5 {[%emt 0:01:09]} 1-0

[Event "51st Rilton Cup 2023-24"]
[Site "Stockholm"]
[Date "2024.01.03"]
[Round "7.12"]
[White "Tulchynskyi, Feliks"]
[Black "Terrieux, Kevin"]
[Result "1/2-1/2"]
[ECO "E59"]
[WhiteElo "2325"]
[BlackElo "2432"]
[Annotator "RC"]
[PlyCount "74"]
[EventDate "2023.12.27"]
[EventType "swiss"]
[EventCountry "SWE"]
[SourceTitle "playchess.com"]
[Source "ChessBase"]
[SourceQuality "1"]
[TimeControl "40/5400+30:1800+30"]

1. d4 {[%emt 0:00:07]} Nf6 {[%emt 0:00:20]} 2. c4 {[%emt 0:00:21]} e6 {[%emt 0:00:28]} 3. Nc3 {[%emt 0:00:15]} Bb4 {[%emt 0:00:08]} 4. e3 {[%emt 0:01:09]} O-O {[%emt 0:00:34]} 5. Bd3 {[%emt 0:00:08]} d5 {[%emt 0:00:24]} 6. Nf3 {[%emt 0:00:20]} dxc4 {[%emt 0:00:14]} 7. Bxc4 {[%emt 0:00:15]} c5 {[%emt 0:00:24]} 8. O-O {[%emt 0:01:01]} Nc6 {[%emt 0:00:32]} 9. a3 {[%emt 0:00:51]} Bxc3 {[%emt 0:00:21]} 10. bxc3 {[%emt 0:00:20]} Qc7 {[%emt 0:00:18]} 11. Bd3 {[%emt 0:08:55]} e5 {[%emt 0:01:05]} 12. dxe5 {[%emt 0:02:01]} Nxe5 {[%emt 0:03:35]} 13. Nxe5 {[%emt 0:07:36]} Qxe5 {[%emt 0:00:06]} 14. Rb1 {[%emt 0:04:15]} b6 {[%emt 0:25:51]} 15. c4 {[%emt 0:10:50]} Bb7 {[%emt 0:07:53]} 16. f3 {[%emt 0:06:16]} Rad8 {[%emt 0:01:26]} 17. Qc2 {[%emt 0:03:10]} Rd6 {[%emt 0:15:05]} 18. Re1 {[%emt 0:07:55]} Rfd8 {[%emt 0:00:24]} 19. Bf1 {[%emt 0:04:45]} Qe6 {[%emt 0:10:00]} 20. e4 {[%emt 0:05:35]} Nd7 {[%emt 0:03:11]} 21. Bf4 {[%emt 0:07:44]} Ne5 {[%emt 0:00:23]} 22. Red1 {[%emt 0:00:28]} Rxd1 {[%emt 0:08:27]} 23. Rxd1 {[%emt 0:00:06]} Rxd1 {[%emt 0:00:13]} 24. Qxd1 {[%emt 0:00:07]} Qd7 {[%emt 0:00:11]} 25. Qxd7 Nxd7 {[%emt 0:00:01]} 26. Kf2 {[%emt 0:14:52]} f6 {[%emt 0:00:29]} 27. Ke3 {[%emt 0:00:54]} Ne5 {[%emt 0:03:01]} 28. Bxe5 {[%emt 0:10:03]} fxe5 {[%emt 0:00:07]} 29. f4 {[%emt 0:00:04]} Kf7 {[%emt 0:05:45]} 30. f5 {[%emt 0:01:45]} Bc6 {[%emt 0:01:47]} 31. h4 {[%emt 0:01:06]} Kf6 {[%emt 0:00:37]} 32. Bd3 {[%emt 0:01:00]} Be8 {[%emt 0:04:02]} 33. Be2 {[%emt 0:00:47]} Bd7 {[%emt 0:01:51]} 34. g3 {[%emt 0:00:53]} Be8 {[%emt 0:00:19]} 35. Kd2 {[%emt 0:00:27]} Bc6 {[%emt 0:00:30]} 36. Ke3 {[%emt 0:00:05]} Be8 {[%emt 0:00:11]} 37. Kd2 {[%emt 0:00:05]} Bc6 {[%emt 0:00:07]} 1/2-1/2

[Event "51st Rilton Cup 2023-24"]
[Site "Stockholm"]
[Date "2024.01.03"]
[Round "7.13"]
[White "Jarmula, Lukasz"]
[Black "Ivanov, Mike"]
[Result "1/2-1/2"]
[ECO "C01"]
[WhiteElo "2425"]
[BlackElo "2356"]
[Annotator "RC"]
[PlyCount "135"]
[EventDate "2023.12.27"]
[EventType "swiss"]
[EventCountry "SWE"]
[SourceTitle "playchess.com"]
[Source "ChessBase"]
[SourceQuality "1"]
[TimeControl "40/5400+30:1800+30"]

1. e4 {[%emt 0:00:04]} e6 {[%emt 0:02:47]} 2. d4 {[%emt 0:00:07]} d5 {[%emt 0:00:10]} 3. Nc3 {[%emt 0:00:06]} Bb4 {[%emt 0:04:36]} 4. exd5 {[%emt 0:00:16]} exd5 {[%emt 0:00:08]} 5. Bd3 {[%emt 0:00:05]} Nc6 {[%emt 0:02:55]} 6. a3 {[%emt 0:00:09]} Bxc3+ {[%emt 0:00:08]} 7. bxc3 {[%emt 0:00:07]} Nf6 {[%emt 0:00:09]} 8. Ne2 {[%emt 0:01:57]} O-O {[%emt 0:00:23]} 9. O-O {[%emt 0:00:07]} Na5 {[%emt 0:01:38]} 10. f3 {[%emt 0:00:36]} Re8 {[%emt 0:02:56]} 11. Qe1 {[%emt 0:03:16]} Nc4 {[%emt 0:03:24]} 12. g4 {[%emt 0:02:54]} Nd7 {[%emt 0:08:38]} 13. Qf2 {[%emt 0:09:55]} Nf8 {[%emt 0:02:40]} 14. Ng3 {[%emt 0:01:54]} Qh4 {[%emt 0:19:13]} 15. Bxc4 {[%emt 0:03:55]} dxc4 {[%emt 0:00:09]} 16. d5 {[%emt 0:00:05]} Qd8 {[%emt 0:08:41]} 17. Qd4 {[%emt 0:15:07]} Qd6 {[%emt 0:07:11]} 18. Nh5 {[%emt 0:09:28]} Qg6 {[%emt 0:10:56]} 19. Bf4 {[%emt 0:06:40]} c5 {[%emt 0:04:29]} 20. Qxc5 {[%emt 0:06:46]} Bf5 {[%emt 0:00:46]} 21. Qxc4 {[%emt 0:03:30]} Bxc2 {[%emt 0:00:21]} 22. Qd4 {[%emt 0:00:37]} Qb6 {[%emt 0:04:10]} 23. Be3 {[%emt 0:05:09]} Qxd4 {[%emt 0:01:45]} 24. Bxd4 {[%emt 0:00:08]} f6 {[%emt 0:01:04]} 25. Rfe1 {[%emt 0:00:20]} Nd7 {[%emt 0:01:47]} 26. Re6 {[%emt 0:09:26]} Rxe6 {[%emt 0:06:23]} 27. dxe6 {[%emt 0:00:12]} Nf8 {[%emt 0:00:01]} 28. Re1 {[%emt 0:12:18]} Re8 {[%emt 0:00:16]} 29. Nf4 {[%emt 0:00:41]} b6 {[%emt 0:02:50]} 30. c4 {[%emt 0:04:34]} Bb3 {[%emt 0:01:15]} 31. e7 {[%emt 0:01:48]} Nd7 {[%emt 0:00:35]} 32. Nd5 {[%emt 0:01:00]} Kf7 {[%emt 0:00:03]} 33. Rc1 {[%emt 0:00:30]} Rc8 {[%emt 0:00:35]} 34. Rc3 {[%emt 0:00:56]} Bxc4 {[%emt 0:01:11]} 35. Ne3 {[%emt 0:00:25]} Ba6 {[%emt 0:00:36]} 36. Rxc8 {[%emt 0:00:49]} Bxc8 {[%emt 0:00:02]} 37. Nf5 {[%emt 0:00:38]} Ba6 {[%emt 0:00:08]} 38. Nxg7 {[%emt 0:00:47]} Kxe7 {[%emt 0:00:15]} 39. Kf2 {[%emt 0:00:42]} Bd3 {[%emt 0:01:50]} 40. Nh5 {[%emt 0:01:04]} Bc2 {[%emt 0:01:05]} 41. Ke3 {[%emt 0:04:12]} Kf7 {[%emt 0:09:10]} 42. h4 {[%emt 0:03:10]} a6 {[%emt 0:09:07]} 43. Ng3 {[%emt 0:03:24]} b5 {[%emt 0:00:16]} 44. Kd2 {[%emt 0:01:52]} Bb3 {[%emt 0:01:05]} 45. f4 {[%emt 0:00:33]} Ke6 {[%emt 0:03:42]} 46. g5 {[%emt 0:06:45]} a5 {[%emt 0:03:08]} 47. Bc3 {[%emt 0:03:18]} b4 {[%emt 0:01:21]} 48. axb4 {[%emt 0:00:36]} axb4 {[%emt 0:00:10]} 49. Bxb4 {[%emt 0:01:09]} Nb6 {[%emt 0:04:44]} 50. f5+ {[%emt 0:04:00]} Kf7 {[%emt 0:02:39]} 51. Kc3 {[%emt 0:01:14]} Ba2 {[%emt 0:00:09]} 52. Kd4 {[%emt 0:00:42]} Nd5 {[%emt 0:00:12]} 53. Bd6 {[%emt 0:00:34]} Nb6 {[%emt 0:01:11]} 54. Bc7 {[%emt 0:01:30]} Nd7 {[%emt 0:01:11]} 55. Bd8 {[%emt 0:00:54]} Ne5 {[%emt 0:01:14]} 56. Ne4 {[%emt 0:03:43]} Nc6+ {[%emt 0:00:23]} 57. Ke3 {[%emt 0:00:33]} Nxd8 {[%emt 0:00:07]} 58. Nxf6 {[%emt 0:00:08]} h6 {[%emt 0:00:16]} 59. Ng4 {[%emt 0:00:23]} hxg5 {[%emt 0:00:08]} 60. hxg5 {[%emt 0:00:05]} Nc6 {[%emt 0:00:44]} 61. Kf4 {[%emt 0:00:23]} Bb1 {[%emt 0:00:54]} 62. Nh6+ {[%emt 0:01:12]} Kg7 {[%emt 0:00:21]} 63. f6+ {[%emt 0:00:29]} Kg6 {[%emt 0:00:07]} 64. Ng4 {[%emt 0:00:18]} Ba2 {[%emt 0:00:24]} 65. Ne5+ {[%emt 0:00:40]} Nxe5 {[%emt 0:00:09]} 66. Kxe5 {[%emt 0:00:03]} Kxg5 {[%emt 0:00:07]} 67. f7 {[%emt 0:00:03]} Bxf7 {[%emt 0:00:10]} 68. Ke4 {[%emt 0:00:02]} 1/2-1/2